bitfinex-derivatives/quotes_BTCF0:USTF0_20250903
["timestamp","ask_amount","ask_price","bid_price","bid_amount"]
[1756895625875,1.0071823,111490.0,111480.0,1.03526608]
[1756895626075,1.34596838,111490.0,111480.0,0.69648]
[1756895626385,1.0071823,111490.0,111480.0,1.03526608]
[1756895626578,0.1781423,111490.0,111480.0,0.69648]
[1756895626779,1.0071823,111490.0,111480.0,1.39606608]
[1756895627379,0.1781423,111490.0,111480.0,1.05728]
[1756895627581,0.1200123,111490.0,111480.0,1.73485216]
[1756895627785,0.9258023,111490.0,111480.0,1.39606608]
[1756895627971,0.9258023,111490.0,111480.0,1.05728]
[1756895628275,0.9612623,111490.0,111480.0,1.39606608]
[1756895629280,0.88786397,111490.0,111480.0,1.39606608]
[1756895629579,0.88786397,111490.0,111480.0,1.05728]
[1756895629780,0.88786397,111490.0,111480.0,1.39606608]
[1756895630482,0.88786397,111490.0,111480.0,1.05728]
[1756895630682,0.88786397,111490.0,111480.0,1.39606608]
[1756895630982,0.88782397,111490.0,111480.0,1.39606608]
[1756895631176,1.22661005,111490.0,111480.0,1.39606608]
[1756895631877,1.22661005,111490.0,111480.0,1.05728]
[1756895632077,1.22661005,111490.0,111480.0,1.39606608]
[1756895632682,1.22661005,111490.0,111480.0,1.05728]
[1756895632978,1.22661005,111490.0,111480.0,1.39606608]
[1756895633183,0.02340397,111490.0,111480.0,1.39606608]
[1756895633385,0.02340397,111490.0,111480.0,1.75586752]
[1756895633780,0.0001,111500.0,111480.0,1.75586752]
[1756895633979,0.0001,111500.0,111490.0,0.78306608]
[1756895634286,1.25132608,111510.0,111500.0,0.09712]
[1756895634483,0.90049583,111510.0,111500.0,0.81590608]
[1756895634777,1.27474191,111510.0,111500.0,0.47712]
[1756895634982,1.27474191,111510.0,111500.0,0.81590608]
[1756895636189,0.93595583,111510.0,111500.0,1.17670608]
[1756895636381,0.44590191,111510.0,111500.0,1.17670608]
[1756895636580,0.93591583,111510.0,111500.0,1.17670608]
[1756895636882,1.27466191,111510.0,111500.0,1.17670608]
[1756895637084,0.10711583,111510.0,111500.0,1.17670608]
[1756895637382,0.93583583,111510.0,111500.0,1.17670608]
[1756895637581,0.93583583,111510.0,111500.0,0.83792]
[1756895638083,0.93583583,111510.0,111500.0,0.48705162]
[1756895638278,0.93583583,111510.0,111500.0,0.12625162]
[1756895638478,0.93579583,111510.0,111500.0,0.42625162]
[1756895640186,0.93579583,111510.0,111500.0,0.78705162]
[1756895641287,0.07165583,111510.0,111500.0,1.48893529]
[1756895641486,1.22492,111520.0,111500.0,1.45432529]
[1756895641788,1.29654755,111520.0,111510.0,0.08348]
[1756895641990,1.29644755,111520.0,111510.0,0.40348]
[1756895642588,1.29644755,111520.0,111510.0,0.10348]
[1756895642788,1.29644755,111520.0,111510.0,0.46348]
[1756895643188,1.29644755,111520.0,111510.0,0.91536367]
[1756895643384,0.93564755,111520.0,111510.0,0.91536367]
[1756895643581,0.90010755,111520.0,111510.0,1.27616367]
[1756895643783,0.87662,111520.0,111510.0,1.54665162]
[1756895644685,0.87662,111520.0,111510.0,1.07428]
[1756895644887,0.0836,111520.0,111510.0,1.52616367]
[1756895645193,0.91208,111520.0,111510.0,1.52616367]
[1756895645586,0.87662,111520.0,111510.0,1.52616367]
[1756895646186,0.91208,111520.0,111510.0,1.52616367]
[1756895646788,0.03556,111530.0,111510.0,1.52616367]
[1756895646992,0.6801,111530.0,111520.0,0.53536367]
[1756895647292,0.6801,111530.0,111520.0,0.91536367]
[1756895647293,0.68,111530.0,111520.0,0.91536367]
[1756895647496,0.68,111530.0,111520.0,0.53536367]
[1756895647694,0.68,111530.0,111520.0,0.08348]
[1756895647895,0.68,111530.0,111520.0,0.10348]
[1756895648695,0.68,111530.0,111520.0,0.08348]
[1756895648884,0.0846,111530.0,111520.0,0.08348]
[1756895649091,0.91288,111530.0,111520.0,0.46348]
[1756895649291,0.91288,111530.0,111520.0,0.08348]
[1756895649493,0.91388,111530.0,111520.0,0.08348]
[1756895649893,1.36576367,111530.0,111520.0,0.08348]
[1756895650894,1.36576367,111530.0,111520.0,0.04887]
[1756895651796,1.36576367,111530.0,111520.0,0.08367]
[1756895652093,1.36576367,111530.0,111520.0,0.04887]
[1756895652293,0.08482,111520.0,111510.0,0.4071]
[1756895652499,0.08482,111520.0,111510.0,0.7918]
[1756895652999,0.89750367,111520.0,111510.0,0.40265]
[1756895653200,0.89750367,111520.0,111510.0,0.02265]
[1756895653402,0.08482,111510.0,111500.0,0.72847162]
[1756895653699,0.91294,111510.0,111500.0,1.07837162]
[1756895656001,0.91294,111510.0,111500.0,0.81457162]
[1756895656904,0.91294,111510.0,111500.0,0.46457162]
[1756895657099,0.91294,111510.0,111500.0,0.81457162]
[1756895660000,0.04756,111510.0,111500.0,1.26645529]
[1756895660198,0.828,111510.0,111500.0,1.26645529]
[1756895660504,0.81684,111520.0,111510.0,0.081]
[1756895660800,0.84021438,111520.0,111510.0,0.461]
[1756895661002,0.84021438,111520.0,111510.0,0.91288367]
[1756895661503,0.84021438,111520.0,111510.0,1.27368367]
[1756895661797,0.93625438,111520.0,111510.0,1.27368367]
[1756895662399,0.93625438,111520.0,111510.0,0.91288367]
[1756895662595,0.93625438,111520.0,111510.0,0.081]
[1756895663301,0.93617438,111520.0,111510.0,0.081]
[1756895665098,0.93717438,111520.0,111510.0,0.081]
[1756895665702,0.93817438,111520.0,111510.0,0.081]
[1756895666601,0.93821061,111520.0,111510.0,0.081]
[1756895668601,1.39009428,111520.0,111510.0,0.081]
[1756895668801,1.75089428,111520.0,111510.0,0.081]
[1756895669100,1.29901061,111520.0,111510.0,0.081]
[1756895669709,1.29901061,111520.0,111510.0,0.0462]
[1756895670008,1.75089428,111520.0,111510.0,0.081]
[1756895670810,1.75089428,111520.0,111510.0,0.0462]
[1756895671513,1.75089428,111520.0,111510.0,0.081]
[1756895672805,1.75089428,111520.0,111510.0,0.0462]
[1756895673508,1.75089428,111520.0,111510.0,0.02265]
[1756895674509,1.71363428,111520.0,111500.0,0.8913349]
[1756895674705,1.71363428,111520.0,111500.0,1.2213349]
[1756895674706,0.03726,111510.0,111500.0,1.2213349]
[1756895675005,0.06077061,111510.0,111500.0,1.2212349]
[1756895677405,0.06077061,111510.0,111500.0,1.2222349]
[1756895677611,0.06077061,111510.0,111500.0,1.2242349]
[1756895678209,0.06077061,111510.0,111500.0,1.2212349]
[1756895678604,0.10833061,111510.0,111500.0,0.81555123]
[1756895678804,0.10833061,111510.0,111500.0,1.2674349]
[1756895679005,0.08482,111510.0,111500.0,1.2674349]
[1756895681706,0.08233,111510.0,111500.0,1.2674349]
[1756895682910,0.08233,111510.0,111500.0,0.81555123]
[1756895683415,0.08233,111510.0,111500.0,0.81655123]
[1756895683609,0.08233,111510.0,111500.0,0.83855123]
[1756895684010,0.08233,111510.0,111500.0,0.83755123]
[1756895684215,0.08233,111510.0,111500.0,0.83555123]
[1756895685114,0.90985,111510.0,111500.0,0.83555123]
[1756895685315,0.90981,111510.0,111500.0,0.83555123]
[1756895686116,1.97249367,111510.0,111500.0,0.09464]
[1756895686309,1.54414817,111510.0,111500.0,0.02265]
[1756895686514,1.99603184,111510.0,111500.0,0.02265]
[1756895686910,1.99603184,111510.0,111500.0,0.04544]
[1756895687310,1.99703184,111510.0,111500.0,0.04544]
[1756895687510,1.99803184,111510.0,111500.0,0.04544]
[1756895687710,0.08904,111500.0,111490.0,0.08134]
[1756895687913,0.92526184,111500.0,111490.0,0.08124]
[1756895688111,1.29370817,111500.0,111490.0,0.45124]
[1756895688416,1.27017,111500.0,111490.0,0.08124]
[1756895688715,1.27017,111500.0,111490.0,0.43021002]
[1756895688912,0.44273,111500.0,111490.0,0.43021002]
[1756895689106,0.04716,111500.0,111490.0,1.24289369]
[1756895689304,0.08403,111510.0,111500.0,0.09483]
[1756895689510,0.93485505,111510.0,111500.0,0.88671367]
[1756895689718,0.93485505,111510.0,111500.0,0.42483]
[1756895689914,0.93285505,111510.0,111500.0,0.42483]
[1756895690119,0.93285505,111510.0,111500.0,0.45483]
[1756895690420,0.89812505,111510.0,111500.0,0.45483]
[1756895690623,0.93289505,111510.0,111500.0,0.45483]
[1756895691712,0.93289505,111510.0,111500.0,0.43483]
[1756895692221,0.93289505,111510.0,111500.0,0.11483]
[1756895692514,0.93289505,111510.0,111500.0,0.44483]
[1756895692720,0.93289505,111510.0,111500.0,0.09483]
[1756895692919,1.38477872,111510.0,111490.0,0.66746002]
[1756895693120,1.38477872,111510.0,111490.0,0.35411002]
[1756895693121,0.53381367,111500.0,111490.0,0.35411002]
[1756895693417,0.08193,111500.0,111490.0,0.72401002]
[1756895694925,0.08193,111500.0,111490.0,0.35401002]
[1756895695225,0.08193,111500.0,111490.0,0.69401002]
[1756895697326,0.1054421,111500.0,111490.0,0.69401002]
[1756895697529,0.44443279,111500.0,111490.0,0.76920071]
[1756895698024,0.44443279,111500.0,111490.0,0.43023069]
[1756895698330,0.44443279,111500.0,111490.0,0.08124]
[1756895698532,0.44443279,111500.0,111490.0,0.44023069]
[1756895700028,0.44443279,111500.0,111490.0,0.45023069]
[1756895700222,0.1054421,111500.0,111490.0,0.44023069]
[1756895700423,0.44443279,111500.0,111490.0,0.44023069]
[1756895700624,0.44443279,111500.0,111490.0,0.42023069]
[1756895701026,0.44443279,111500.0,111490.0,0.08124]
[1756895701229,0.44443279,111500.0,111490.0,0.42023069]
[1756895702424,0.78342348,111500.0,111490.0,0.08124]
[1756895702625,0.79053348,111500.0,111490.0,0.08124]
[1756895704430,0.78342348,111500.0,111490.0,0.42023069]
[1756895704827,1.61074348,111500.0,111490.0,0.42023069]
[1756895705028,1.27175279,111500.0,111490.0,0.42023069]
[1756895705233,1.27171279,111500.0,111490.0,0.42023069]
[1756895705637,0.44443279,111500.0,111490.0,0.42023069]
[1756895705833,1.27171279,111500.0,111490.0,0.42023069]
[1756895707236,0.8507921,111500.0,111490.0,0.78103069]
[1756895707438,0.8507921,111500.0,111490.0,1.14103069]
[1756895707638,0.8507921,111500.0,111490.0,1.11103069]
[1756895707829,0.8507921,111500.0,111490.0,0.77204]
[1756895708026,0.8979521,111500.0,111490.0,1.11103069]
[1756895708434,0.8979521,111500.0,111490.0,1.11203069]
[1756895708932,0.0235121,111500.0,111490.0,1.11203069]
[1756895709238,0.0235121,111500.0,111490.0,1.11103069]
[1756895709532,0.0235121,111500.0,111490.0,0.77304]
[1756895709738,0.0461321,111500.0,111490.0,1.11203069]
[1756895710337,0.0461321,111500.0,111490.0,1.11403069]
[1756895711439,0.0461321,111500.0,111490.0,1.11203069]
[1756895711833,0.1055421,111500.0,111490.0,1.11203069]
[1756895712138,0.1055421,111500.0,111490.0,1.11103069]
[1756895712338,0.1055421,111500.0,111490.0,1.11203069]
[1756895712840,0.0709121,111500.0,111490.0,1.11203069]
[1756895713139,0.0709121,111500.0,111490.0,1.11103069]
[1756895713140,0.0235121,111500.0,111490.0,1.11103069]
[1756895713639,0.0235121,111500.0,111490.0,1.11303069]
[1756895714033,0.0235121,111500.0,111490.0,2.52918138]
[1756895714344,0.0235121,111500.0,111490.0,2.19019069]
[1756895715042,0.0235121,111500.0,111490.0,2.19119069]
[1756895715238,0.0235121,111500.0,111490.0,2.45499069]
[1756895716343,1.20744069,111510.0,111500.0,0.09593]
[1756895716545,1.23088212,111510.0,111500.0,0.76492069]
[1756895718841,1.23088212,111510.0,111500.0,0.09593]
[1756895719041,1.48088212,111510.0,111500.0,0.0467]
[1756895719238,1.84168212,111510.0,111500.0,0.0467]
[1756895719438,1.84168212,111510.0,111500.0,0.08151]
[1756895719638,1.48088212,111510.0,111500.0,0.09593]
[1756895719841,0.69456212,111510.0,111500.0,0.09593]
[1756895720042,1.27160212,111510.0,111500.0,0.43492069]
[1756895720243,0.93261143,111510.0,111500.0,0.43492069]
[1756895720437,1.27160212,111510.0,111500.0,0.43492069]
[1756895720637,1.63240212,111510.0,111500.0,0.08151]
[1756895720941,1.88340212,111510.0,111490.0,0.99850069]
[1756895721139,0.42102069,111500.0,111490.0,0.78140069]
[1756895721341,0.44456212,111500.0,111490.0,1.11130069]
[1756895723648,0.10557143,111500.0,111490.0,1.11130069]
[1756895724848,0.44456212,111500.0,111490.0,1.11130069]
[1756895725946,0.10557143,111500.0,111490.0,1.11130069]
[1756895727355,0.44456212,111500.0,111490.0,1.11130069]
[1756895727655,0.10557143,111500.0,111490.0,1.11130069]
[1756895731044,0.07094143,111500.0,111490.0,1.11130069]
[1756895732146,0.07094143,111500.0,111490.0,0.77231]
[1756895732350,0.44456212,111500.0,111490.0,0.45231]
[1756895732548,0.44456212,111500.0,111490.0,0.78130069]
[1756895732753,0.44456212,111500.0,111490.0,1.16130069]
[1756895733351,0.89770143,111500.0,111490.0,1.16130069]
[1756895735151,0.04616143,111500.0,111490.0,1.16130069]
[1756895736159,0.02262,111500.0,111490.0,1.16130069]
[1756895736452,0.04614386,111500.0,111490.0,1.16130069]
[1756895736662,0.44454455,111500.0,111490.0,1.16130069]
[1756895737753,0.44454455,111500.0,111490.0,0.80050069]
[1756895738354,0.44454455,111500.0,111490.0,0.46151]
[1756895738554,0.44454455,111500.0,111490.0,0.80050069]
[1756895740258,0.02352386,111500.0,111490.0,0.80050069]
[1756895740460,0.02352386,111500.0,111490.0,1.16130069]
[1756895740654,1.20174069,111510.0,111490.0,0.7875]
[1756895740853,1.27478464,111510.0,111500.0,0.43722069]
[1756895741054,1.27468464,111510.0,111500.0,0.76722069]
[1756895741854,1.27468464,111510.0,111500.0,0.43722069]
[1756895745864,1.27468464,111510.0,111500.0,0.39392069]
[1756895746263,1.27468464,111510.0,111500.0,0.38606069]
[1756895746665,1.27468464,111510.0,111500.0,0.04707]
[1756895746864,0.44808464,111510.0,111500.0,0.38606069]
[1756895747066,1.27456464,111510.0,111500.0,0.38606069]
[1756895747968,1.27456464,111510.0,111500.0,0.42261069]
[1756895748762,1.27456464,111510.0,111500.0,0.08362]
[1756895748963,1.27456464,111510.0,111500.0,0.42261069]
[1756895749865,1.27456464,111510.0,111500.0,0.08362]
[1756895750168,1.27456464,111510.0,111490.0,0.73644069]
[1756895750475,0.38941069,111500.0,111490.0,1.16243069]
[1756895750765,0.41293464,111500.0,111490.0,1.16233069]
[1756895750967,0.41293464,111500.0,111490.0,0.82334]
[1756895750968,0.46079464,111500.0,111490.0,0.82334]
[1756895751166,0.46079464,111500.0,111490.0,1.16233069]
[1756895751874,0.79978533,111500.0,111490.0,0.04599]
[1756895752066,0.08391,111490.0,111480.0,0.45130634]
[1756895752267,1.24926069,111490.0,111480.0,0.39254]
[1756895752468,1.27273733,111490.0,111480.0,0.35599]
[1756895752969,1.27273733,111490.0,111470.0,0.03665]
[1756895752970,1.63353733,111490.0,111470.0,0.03665]
[1756895753269,0.42290069,111480.0,111470.0,0.43264]
[1756895753468,0.42290069,111480.0,111470.0,0.43254]
[1756895753671,0.42290069,111480.0,111470.0,0.77153069]
[1756895754168,0.42290069,111480.0,111470.0,0.44147911]
[1756895754169,0.08391,111480.0,111470.0,0.44147911]
[1756895754465,0.78370069,111480.0,111470.0,0.37332]
[1756895754772,1.12069138,111480.0,111470.0,0.40047]
[1756895755073,1.12069138,111480.0,111470.0,0.43902]
[1756895755462,0.78170069,111480.0,111470.0,0.44202]
[1756895756174,0.80515069,111480.0,111470.0,0.44202]
[1756895757975,0.46616,111480.0,111470.0,0.44202]
[1756895758274,1.14414138,111480.0,111470.0,0.35948]
[1756895758774,1.14414138,111480.0,111470.0,0.3828]
[1756895759476,0.91841947,111480.0,111470.0,0.3828]
[1756895759672,0.91841947,111480.0,111470.0,0.44202]
[1756895759974,1.74473947,111480.0,111470.0,0.44202]
[1756895760171,0.46616,111480.0,111470.0,0.44202]
[1756895760360,1.29248,111480.0,111470.0,0.44202]
[1756895760874,0.46616,111480.0,111470.0,0.44202]
[1756895761064,1.29248,111480.0,111470.0,0.44202]
[1756895762673,1.74473947,111480.0,111470.0,0.44202]
[1756895762871,0.91841947,111480.0,111470.0,0.44202]
[1756895763076,1.29248,111480.0,111470.0,0.44202]
[1756895763272,0.46616,111480.0,111470.0,0.44202]
[1756895763478,0.46616,111480.0,111470.0,0.89427947]
[1756895763773,0.87218,111480.0,111470.0,1.50507947]
[1756895764079,0.84906,111480.0,111470.0,1.50507947]
[1756895764576,0.02274,111480.0,111470.0,1.50507947]
[1756895764775,0.15481822,111490.0,111480.0,0.08254]
[1756895764966,0.15481822,111490.0,111480.0,0.42254]
[1756895764967,1.0044525,111490.0,111480.0,0.42254]
[1756895766282,0.98103822,111490.0,111480.0,0.08354]
[1756895766576,0.98103822,111490.0,111480.0,0.39354]
[1756895767174,0.15471822,111490.0,111480.0,0.39354]
[1756895767376,0.98103822,111490.0,111480.0,0.39354]
[1756895767674,0.08391,111490.0,111480.0,1.45759947]
[1756895767977,0.02474,111490.0,111480.0,1.45759947]
[1756895769180,0.0249,111490.0,111480.0,1.42104947]
[1756895769878,0.0249,111490.0,111480.0,1.45592947]
[1756895770078,0.0249,111490.0,111480.0,1.00367]
[1756895770271,0.0249,111490.0,111480.0,1.45592947]
[1756895771181,1.23764,111500.0,111490.0,0.08089]
[1756895771182,1.28562,111500.0,111490.0,0.08089]
[1756895771382,1.28552,111500.0,111490.0,0.42089]
[1756895772875,1.28652,111500.0,111490.0,0.42089]
[1756895773178,0.46024,111500.0,111490.0,0.08089]
[1756895773378,1.30990047,111500.0,111490.0,0.08089]
[1756895773982,1.30990047,111500.0,111490.0,0.45089]
[1756895774178,0.10849047,111500.0,111490.0,0.90314947]
[1756895774381,0.91131,111500.0,111490.0,0.90314947]
[1756895774581,0.91131,111500.0,111490.0,0.45089]
[1756895774783,0.91131,111500.0,111490.0,0.90314947]
[1756895775281,0.9255,111500.0,111490.0,0.45189]
[1756895775486,0.9255,111500.0,111490.0,0.90414947]
[1756895775487,0.9245,111500.0,111490.0,0.90414947]
[1756895775677,0.9245,111500.0,111490.0,0.90514947]
[1756895776281,0.9245,111500.0,111490.0,0.45289]
[1756895776487,0.9245,111500.0,111490.0,0.90514947]
[1756895776677,0.9245,111500.0,111490.0,0.81269]
[1756895776879,0.9245,111500.0,111490.0,0.81369]
[1756895777881,0.9245,111500.0,111490.0,0.81269]
[1756895779285,0.92442,111500.0,111490.0,0.81717]
[1756895779485,0.92442,111500.0,111490.0,0.81617]
[1756895779686,0.92542,111500.0,111490.0,0.81617]
[1756895780284,0.92542,111500.0,111490.0,0.81717]
[1756895780885,0.09826,111500.0,111490.0,0.81717]
[1756895781081,0.91019,111500.0,111490.0,1.27042947]
[1756895781291,0.91019,111500.0,111490.0,1.26942947]
[1756895781488,0.92438,111500.0,111490.0,0.81717]
[1756895781989,0.92438,111500.0,111490.0,0.40637]
[1756895782195,1.37663947,111500.0,111490.0,0.40637]
[1756895782689,0.92438,111500.0,111490.0,0.40637]
[1756895782993,0.09826,111500.0,111490.0,0.76617]
[1756895783197,0.92434,111500.0,111490.0,0.76717]
[1756895783397,0.09826,111500.0,111490.0,0.76717]
[1756895783698,0.91015,111500.0,111490.0,1.21942947]
[1756895783995,0.91115,111500.0,111490.0,1.21942947]
[1756895784996,0.91015,111500.0,111490.0,1.21942947]
[1756895785294,0.91015,111500.0,111490.0,0.44817]
[1756895785495,0.92434,111500.0,111490.0,1.25042947]
[1756895786296,0.92434,111500.0,111490.0,0.79817]
[1756895786599,0.92434,111500.0,111490.0,0.80717]
[1756895786800,0.92434,111500.0,111490.0,0.80817]
[1756895787296,0.92434,111500.0,111490.0,0.80717]
[1756895787703,0.92434,111500.0,111490.0,0.80817]
[1756895788302,0.92434,111500.0,111490.0,0.80717]
[1756895788505,0.92434,111500.0,111490.0,0.80817]
[1756895789904,0.92434,111500.0,111490.0,0.44717]
[1756895790097,1.37659947,111500.0,111490.0,0.44817]
[1756895790294,1.37659947,111500.0,111490.0,0.74329]
[1756895790901,1.37759947,111500.0,111490.0,0.74129]
[1756895791206,1.37759947,111500.0,111490.0,0.82617]
[1756895792405,1.40102933,111500.0,111490.0,0.82617]
[1756895793104,0.94876986,111500.0,111490.0,0.82617]
[1756895793406,0.94876986,111500.0,111490.0,0.77617]
[1756895793607,0.94872986,111500.0,111490.0,0.77617]
[1756895794114,0.94872986,111500.0,111490.0,0.44617]
[1756895794804,0.94872986,111500.0,111490.0,0.77617]
[1756895795206,0.94872986,111500.0,111490.0,0.44617]
[1756895795612,0.94872986,111500.0,111490.0,0.79617]
[1756895796011,0.94872986,111500.0,111490.0,0.41129]
[1756895796215,0.94872986,111500.0,111490.0,0.44617]
[1756895796515,1.40101194,111500.0,111490.0,0.44617]
[1756895796704,1.76181194,111500.0,111490.0,0.00448]
[1756895797006,1.76181194,111500.0,111490.0,0.02782]
[1756895798410,1.30955247,111500.0,111490.0,0.05173]
[1756895798609,1.76181194,111500.0,111490.0,0.05173]
[1756895799412,1.30955247,111500.0,111490.0,0.08935]
[1756895799605,1.76181194,111500.0,111490.0,0.02883]
[1756895800511,1.76181194,111500.0,111490.0,0.05274]
[1756895803224,1.76181194,111500.0,111490.0,0.00448]
[1756895803524,1.76181194,111500.0,111490.0,0.02883]
[1756895804220,1.30955247,111500.0,111490.0,0.05195]
[1756895804415,1.76181194,111500.0,111490.0,0.05195]
[1756895805019,0.93577194,111500.0,111490.0,0.41856]
[1756895805214,0.12271247,111500.0,111490.0,1.23161947]
[1756895805410,0.94871247,111500.0,111490.0,1.23161947]
[1756895806012,0.94871247,111500.0,111490.0,0.77936]
[1756895806212,0.94871247,111500.0,111490.0,1.23161947]
[1756895806719,0.94871247,111500.0,111490.0,1.23261947]
[1756895806914,0.94771247,111500.0,111490.0,1.23261947]
[1756895807118,0.94771247,111500.0,111490.0,1.23361947]
[1756895807511,0.94771247,111500.0,111490.0,0.42856]
[1756895807717,0.94871247,111500.0,111490.0,0.78936]
[1756895807917,0.94871247,111500.0,111490.0,0.40856]
[1756895808115,0.94871247,111500.0,111490.0,0.08856]
[1756895809019,1.30951247,111500.0,111490.0,0.08856]
[1756895810228,1.76177194,111500.0,111490.0,0.08856]
[1756895811019,1.76177194,111500.0,111490.0,0.05195]
[1756895811221,1.30951247,111500.0,111490.0,0.08856]
[1756895811426,0.94871247,111500.0,111490.0,0.08856]
[1756895811618,1.40097194,111500.0,111490.0,0.05195]
[1756895811818,0.94871247,111500.0,111490.0,0.08856]
[1756895812125,1.40149194,111500.0,111490.0,0.05195]
[1756895814825,1.76229194,111500.0,111490.0,0.02883]
[1756895815327,1.76229194,111500.0,111490.0,0.05195]
[1756895815826,1.31003247,111500.0,111490.0,0.08856]
[1756895816127,1.31003247,111500.0,111490.0,0.02883]
[1756895816316,1.40149194,111500.0,111490.0,0.05195]
[1756895816520,1.40149194,111500.0,111490.0,0.00448]
[1756895816723,1.40149194,111500.0,111490.0,0.02883]
[1756895816921,1.40149194,111500.0,111490.0,0.00448]
[1756895817228,1.76229194,111500.0,111490.0,0.00448]
[1756895817728,2.01229194,111500.0,111490.0,0.00448]
[1756895817934,2.01229194,111500.0,111480.0,0.0001]
[1756895818123,0.49953947,111490.0,111480.0,0.0001]
[1756895818428,0.08262,111480.0,111470.0,0.72702023]
[1756895818730,0.90862,111480.0,111470.0,1.04692023]
[1756895819429,1.24771316,111480.0,111470.0,1.38601339]
[1756895820028,1.24671316,111480.0,111470.0,1.38601339]
[1756895820227,0.90762,111480.0,111470.0,1.04692023]
[1756895820431,0.90762,111480.0,111470.0,1.38601339]
[1756895820634,1.24671316,111480.0,111470.0,1.38601339]
[1756895820929,1.24671316,111480.0,111470.0,1.39001339]
[1756895821524,1.24671316,111480.0,111470.0,1.05092023]
[1756895821824,1.24671316,111480.0,111470.0,1.39001339]
[1756895822028,1.24671316,111480.0,111470.0,1.12621339]
[1756895822225,1.24671316,111480.0,111470.0,0.78712023]
[1756895822426,1.24671316,111480.0,111470.0,1.12621339]
[1756895823721,0.90762,111480.0,111470.0,1.12621339]
[1756895823923,0.08162,111480.0,111470.0,0.78712023]
[1756895824235,0.08162,111480.0,111470.0,1.12621339]
[1756895824425,0.08162,111480.0,111470.0,0.78712023]
[1756895824625,0.08162,111480.0,111470.0,1.12621339]
[1756895825126,0.08162,111480.0,111470.0,0.78712023]
[1756895825428,0.08162,111480.0,111470.0,1.12621339]
[1756895826331,0.08162,111480.0,111470.0,0.78712023]
[1756895826522,0.08162,111480.0,111470.0,1.12621339]
[1756895827018,0.90924,111490.0,111480.0,0.08408]
[1756895827223,0.90914,111490.0,111480.0,1.47306632]
[1756895827528,0.90914,111490.0,111480.0,0.79488]
[1756895827723,0.90914,111490.0,111480.0,1.47306632]
[1756895828124,0.90914,111490.0,111480.0,0.79488]
[1756895828324,0.90914,111490.0,111480.0,1.47306632]
[1756895829018,0.90914,111490.0,111480.0,0.79588]
[1756895829225,0.9091,111490.0,111480.0,0.79588]
[1756895829531,0.90882,111490.0,111480.0,1.47406632]
[1756895830234,0.90882,111490.0,111480.0,0.79588]
[1756895830427,0.90882,111490.0,111480.0,1.47406632]
[1756895830625,0.90882,111490.0,111480.0,1.13497316]
[1756895830833,1.24791316,111490.0,111480.0,1.13497316]
[1756895832233,1.24791316,111490.0,111480.0,0.43508]
[1756895832532,1.24791316,111490.0,111480.0,1.13497316]
[1756895832935,0.42171316,111490.0,111480.0,1.13497316]
[1756895833235,0.08262,111490.0,111480.0,1.13497316]
[1756895833431,0.90866,111490.0,111480.0,1.47406632]
[1756895834235,0.90866,111490.0,111480.0,0.79588]
[1756895834434,0.90866,111490.0,111480.0,1.13497316]
[1756895834935,1.24775316,111490.0,111480.0,1.13497316]
[1756895835638,0.90866,111490.0,111480.0,1.13497316]
[1756895836036,0.08262,111490.0,111480.0,1.13497316]
[1756895836232,0.93247021,111490.0,111480.0,1.13497316]
[1756895836434,0.93247021,111490.0,111480.0,0.79588]
[1756895836639,0.10603021,111490.0,111480.0,1.47406632]
[1756895836840,0.89697021,111490.0,111480.0,1.47406632]
[1756895837039,0.93343021,111490.0,111480.0,1.47406632]
[1756895837233,0.93343021,111490.0,111480.0,0.79588]
[1756895837433,0.93343021,111490.0,111480.0,1.47406632]
[1756895838537,0.07069021,111490.0,111480.0,2.30034632]
[1756895841432,0.10715021,111490.0,111480.0,2.30034632]
[1756895843551,0.07069021,111490.0,111480.0,2.30034632]
[1756895844051,0.04728,111490.0,111480.0,2.30034632]
[1756895844548,0.04728,111490.0,111480.0,1.62216]
[1756895844748,0.04728,111490.0,111480.0,2.30034632]
[1756895845045,0.04825,111500.0,111490.0,0.08163]
[1756895845241,0.89761494,111500.0,111490.0,1.14152316]
[1756895845643,0.93367494,111500.0,111490.0,1.14152316]
[1756895845842,0.93407494,111500.0,111490.0,1.14152316]
[1756895847049,0.93507494,111500.0,111490.0,1.14152316]
[1756895847245,0.10903494,111500.0,111490.0,1.14152316]
[1756895847448,0.07257494,111500.0,111490.0,1.14152316]
[1756895848650,0.07157494,111500.0,111490.0,1.14152316]
[1756895848846,0.07157494,111500.0,111490.0,0.80243]
[1756895849047,0.10803494,111500.0,111490.0,1.14152316]
[1756895849239,0.4609881,111500.0,111490.0,0.78072316]
[1756895849444,1.05008126,111500.0,111490.0,0.40654]
[1756895849751,1.41088126,111500.0,111490.0,0.40654]
[1756895850052,1.0717881,111500.0,111490.0,0.40654]
[1756895850550,1.0717881,111500.0,111490.0,0.06654]
[1756895850752,1.0717881,111500.0,111490.0,0.41654]
[1756895850947,1.0717881,111500.0,111490.0,0.38654]
[1756895851450,1.0727881,111500.0,111490.0,0.42163]
[1756895851646,1.0737881,111500.0,111490.0,0.08163]
[1756895851949,1.0737881,111500.0,111490.0,0.40163]
[1756895852151,1.0737881,111500.0,111490.0,0.10163]
[1756895852340,1.0737881,111500.0,111490.0,0.08163]
[1756895852548,1.0737881,111500.0,111490.0,0.04654]
[1756895852741,0.48469494,111500.0,111490.0,0.78072316]
[1756895853253,0.12389494,111500.0,111490.0,1.14152316]
[1756895854248,0.12189494,111500.0,111490.0,1.14152316]
[1756895854642,0.94849494,111500.0,111490.0,1.14152316]
[1756895854844,0.12189494,111500.0,111490.0,1.14152316]
[1756895855043,0.94825494,111500.0,111490.0,1.14152316]
[1756895855244,0.12289494,111500.0,111490.0,1.14152316]
[1756895855439,0.07357494,111500.0,111490.0,1.14152316]
[1756895855644,0.07317494,111500.0,111490.0,1.14152316]
[1756895855943,0.07357494,111500.0,111490.0,1.14152316]
[1756895856638,0.11003494,111500.0,111490.0,0.78072316]
[1756895856844,0.4629881,111500.0,111490.0,1.14152316]
[1756895857051,0.4629881,111500.0,111490.0,0.78072316]
[1756895857353,0.12289494,111500.0,111490.0,0.78072316]
[1756895857551,0.12289494,111500.0,111490.0,1.14152316]
[1756895857751,0.4609881,111500.0,111490.0,1.14152316]
[1756895857948,0.4609881,111500.0,111490.0,0.78072316]
[1756895858349,0.4619881,111500.0,111490.0,0.78072316]
[1756895858551,0.4629881,111500.0,111490.0,0.78072316]
[1756895858942,0.12389494,111500.0,111490.0,0.78072316]
[1756895859145,0.4629881,111500.0,111490.0,0.78072316]